[Event "Titled Tuesday Blitz February 22 Late 2022"]
[White "Cardoso Cardoso, Jose Gabriel"]
[Black "Vovk, Orest"]
[WhiteFideId "4430492"]
[BlackFideId "14113490"]
[WhiteElo "2451"]
[BlackElo "2203"]
[Result "1-0"]
[Round "08"]
[TimeControl "180+1"]
[Date "2022.02.22"]
[WhiteClock "0:00:06"]
[BlackClock "0:00:32"]

1. Nf3 {[%clk 0:03:00]}  h6 {[%clk 0:02:45]} 2. e4 {[%clk 0:02:57]}  g5 {[%clk 0:02:45]} 3. d4 {[%clk 0:02:56]}  Bg7 {[%clk 0:02:46]} 4. c3 {[%clk 0:02:52]}  d6 {[%clk 0:02:45]} 5. Bc4 {[%clk 0:02:50]}  c6 {[%clk 0:02:44]} 6. a4 {[%clk 0:02:50]}  Nd7 {[%clk 0:02:42]} 7. Qe2 {[%clk 0:02:49]}  Nf8 {[%clk 0:02:42]} 8. e5 {[%clk 0:02:48]}  Be6 {[%clk 0:02:39]} 9. Nbd2 {[%clk 0:02:44]}  Bxc4 {[%clk 0:02:38]} 10. Nxc4 {[%clk 0:02:42]}  d5 {[%clk 0:02:39]} 11. Ne3 {[%clk 0:02:40]}  e6 {[%clk 0:02:39]} 12. h4 {[%clk 0:02:39]}  gxh4 {[%clk 0:02:27]} 13. Nxh4 {[%clk 0:02:35]}  Ne7 {[%clk 0:02:27]} 14. Ng4 {[%clk 0:02:18]}  Nfg6 {[%clk 0:02:16]} 15. Nxg6 {[%clk 0:01:43]}  Nxg6 {[%clk 0:02:16]} 16. Rh5 {[%clk 0:01:43]}  Qb6 {[%clk 0:02:07]} 17. a5 {[%clk 0:01:40]}  Qc7 {[%clk 0:01:58]} 18. b4 {[%clk 0:01:29]}  O-O-O {[%clk 0:01:56]} 19. Be3 {[%clk 0:01:27]}  Ne7 {[%clk 0:01:52]} 20. Kd2 {[%clk 0:01:21]}  Nf5 {[%clk 0:01:52]} 21. Rah1 {[%clk 0:01:19]}  c5 {[%clk 0:01:50]} 22. bxc5 {[%clk 0:01:12]}  Qxa5 {[%clk 0:01:50]} 23. Qd3 {[%clk 0:01:07]}  b6 {[%clk 0:01:42]} 24. cxb6 {[%clk 0:01:03]}  axb6 {[%clk 0:01:42]} 25. Ke2 {[%clk 0:00:50]}  Kb7 {[%clk 0:01:40]} 26. Rxf5 {[%clk 0:00:44]}  exf5 {[%clk 0:01:37]} 27. Qxf5 {[%clk 0:00:45]}  Qxc3 {[%clk 0:01:32]} 28. Qxf7+ {[%clk 0:00:43]}  Qc7 {[%clk 0:01:32]} 29. Qg6 {[%clk 0:00:37]}  Qc4+ {[%clk 0:01:27]} 30. Kf3 {[%clk 0:00:35]}  Rdf8+ {[%clk 0:01:18]} 31. Kg3 {[%clk 0:00:34]}  Bxe5+ {[%clk 0:01:15]} 32. dxe5 {[%clk 0:00:26]}  Rhg8 {[%clk 0:01:11]} 33. Qh7+ {[%clk 0:00:24]}  Kb8 {[%clk 0:01:08]} 34. f3 {[%clk 0:00:21]}  Rxg4+ {[%clk 0:00:57]} 35. fxg4 {[%clk 0:00:21]}  Qc3 {[%clk 0:00:57]} 36. Qxh6 {[%clk 0:00:12]}  Qb4 {[%clk 0:00:37]} 37. Qxb6+ {[%clk 0:00:10]}  Qxb6 {[%clk 0:00:36]} 38. Bxb6 {[%clk 0:00:11]}  Kb7 {[%clk 0:00:37]} 39. Bc5 {[%clk 0:00:11]}  Rc8 {[%clk 0:00:37]} 40. Bd6 {[%clk 0:00:10]}  Rc3+ {[%clk 0:00:37]} 41. Kf4 {[%clk 0:00:10]}  d4 {[%clk 0:00:38]} 42. Rd1 {[%clk 0:00:09]}  d3 {[%clk 0:00:36]} 43. Ke3 {[%clk 0:00:08]}  Rc4 {[%clk 0:00:34]} 44. Rxd3 {[%clk 0:00:06]}  Rxg4 {[%clk 0:00:34]} 45. Kf3 {[%clk 0:00:06]}  Rg8 {[%clk 0:00:33]} 46. Rc3 {[%clk 0:00:06]}  Rc8 {[%clk 0:00:32]} 47. Rxc8 {[%clk 0:00:06]} 1-0


[Site "https://www.chess.com"]

[Event "Titled Tuesday Blitz February 22 Late 2022"]
[White "De Souza, Cristiano Gomes"]
[Black "Bauer, Thomas"]
[WhiteFideId "2151758"]
[BlackFideId "1639293"]
[WhiteElo "2068"]
[BlackElo "2220"]
[Result "1/2-1/2"]
[Round "08"]
[TimeControl "180+1"]
[Date "2022.02.23"]
[WhiteClock "0:00:14"]
[BlackClock "0:00:12"]

1. d4 {[%clk 0:03:00]}  c6 {[%clk 0:02:53]} 2. c4 {[%clk 0:02:59]}  d5 {[%clk 0:02:47]} 3. Nc3 {[%clk 0:02:59]}  e6 {[%clk 0:02:43]} 4. Nf3 {[%clk 0:02:58]}  Nd7 {[%clk 0:02:35]} 5. e4 {[%clk 0:02:57]}  dxe4 {[%clk 0:02:34]} 6. Nxe4 {[%clk 0:02:56]}  Ngf6 {[%clk 0:02:32]} 7. Bd3 {[%clk 0:02:54]}  Nxe4 {[%clk 0:02:31]} 8. Bxe4 {[%clk 0:02:54]}  Nf6 {[%clk 0:02:32]} 9. Bc2 {[%clk 0:02:53]}  Bb4+ {[%clk 0:02:30]} 10. Bd2 {[%clk 0:02:52]}  Qb6 {[%clk 0:02:23]} 11. Rb1 {[%clk 0:02:39]}  a5 {[%clk 0:02:21]} 12. a3 {[%clk 0:02:39]}  Bxd2+ {[%clk 0:02:17]} 13. Qxd2 {[%clk 0:02:39]}  a4 {[%clk 0:02:14]} 14. O-O {[%clk 0:02:36]}  O-O {[%clk 0:02:14]} 15. Rfe1 {[%clk 0:02:32]}  h6 {[%clk 0:02:12]} 16. Qc3 {[%clk 0:02:18]}  Rd8 {[%clk 0:02:10]} 17. Rbd1 {[%clk 0:02:15]}  Bd7 {[%clk 0:02:09]} 18. Ne5 {[%clk 0:02:08]}  Be8 {[%clk 0:02:09]} 19. h3 {[%clk 0:02:02]}  c5 {[%clk 0:02:08]} 20. dxc5 {[%clk 0:02:00]}  Qxc5 {[%clk 0:02:07]} 21. Qe3 {[%clk 0:01:51]}  Rxd1 {[%clk 0:02:05]} 22. Rxd1 {[%clk 0:01:47]}  Qc7 {[%clk 0:02:00]} 23. f4 {[%clk 0:01:40]}  Bc6 {[%clk 0:01:46]} 24. Qc5 {[%clk 0:01:33]}  Nh5 {[%clk 0:01:42]} 25. Nxc6 {[%clk 0:01:29]}  bxc6 {[%clk 0:01:21]} 26. Qxh5 {[%clk 0:01:28]}  Qb6+ {[%clk 0:01:16]} 27. Kh2 {[%clk 0:01:25]}  Qxb2 {[%clk 0:01:15]} 28. Rd7 {[%clk 0:01:12]}  Rf8 {[%clk 0:01:09]} 29. Qe2 {[%clk 0:01:11]}  Qxa3 {[%clk 0:01:07]} 30. Qd2 {[%clk 0:01:05]}  g6 {[%clk 0:01:01]} 31. Ra7 {[%clk 0:00:48]}  Qb2 {[%clk 0:00:42]} 32. Rxa4 {[%clk 0:00:44]}  h5 {[%clk 0:00:39]} 33. Rb4 {[%clk 0:00:38]}  Qa2 {[%clk 0:00:36]} 34. Qc3 {[%clk 0:00:29]}  Rd8 {[%clk 0:00:31]} 35. Rb7 {[%clk 0:00:26]}  Qa6 {[%clk 0:00:20]} 36. Qf6 {[%clk 0:00:18]}  Qxb7 {[%clk 0:00:17]} 37. Qxd8+ {[%clk 0:00:17]}  Kg7 {[%clk 0:00:18]} 38. Qd4+ {[%clk 0:00:17]}  Kf8 {[%clk 0:00:17]} 39. Be4 {[%clk 0:00:16]}  Qc7 {[%clk 0:00:15]} 40. Qe5 {[%clk 0:00:15]}  Qd7 {[%clk 0:00:14]} 41. c5 {[%clk 0:00:14]}  h4 {[%clk 0:00:10]} 42. Qd6+ {[%clk 0:00:13]}  Qxd6 {[%clk 0:00:07]} 43. cxd6 {[%clk 0:00:13]}  c5 {[%clk 0:00:07]} 44. Bc6 {[%clk 0:00:13]}  c4 {[%clk 0:00:06]} 45. Ba4 {[%clk 0:00:13]}  c3 {[%clk 0:00:06]} 46. g3 {[%clk 0:00:13]}  hxg3+ {[%clk 0:00:05]} 47. Kxg3 {[%clk 0:00:12]}  f6 {[%clk 0:00:05]} 48. h4 {[%clk 0:00:12]}  e5 {[%clk 0:00:05]} 49. fxe5 {[%clk 0:00:12]}  fxe5 {[%clk 0:00:06]} 50. Kf3 {[%clk 0:00:12]}  Kf7 {[%clk 0:00:04]} 51. Ke4 {[%clk 0:00:12]}  Ke6 {[%clk 0:00:04]} 52. d7 {[%clk 0:00:12]}  c2 {[%clk 0:00:02]} 53. Bxc2 {[%clk 0:00:11]}  Kxd7 {[%clk 0:00:02]} 54. Kxe5 {[%clk 0:00:11]}  Ke7 {[%clk 0:00:02]} 55. Bxg6 {[%clk 0:00:10]}  Kf8 {[%clk 0:00:03]} 56. Kf6 {[%clk 0:00:10]}  Kg8 {[%clk 0:00:03]} 57. h5 {[%clk 0:00:10]}  Kh8 {[%clk 0:00:04]} 58. h6 {[%clk 0:00:11]}  Kg8 {[%clk 0:00:05]} 59. Bf5 {[%clk 0:00:11]}  Kh8 {[%clk 0:00:06]} 60. Be6 {[%clk 0:00:11]}  Kh7 {[%clk 0:00:06]} 61. Kg5 {[%clk 0:00:11]}  Kh8 {[%clk 0:00:07]} 62. Bf5 {[%clk 0:00:11]}  Kg8 {[%clk 0:00:07]} 63. Bg6 {[%clk 0:00:11]}  Kh8 {[%clk 0:00:08]} 64. Bh5 {[%clk 0:00:12]}  Kg8 {[%clk 0:00:08]} 65. Kf6 {[%clk 0:00:12]}  Kh8 {[%clk 0:00:09]} 66. Kg5 {[%clk 0:00:12]}  Kh7 {[%clk 0:00:10]} 67. Bg6+ {[%clk 0:00:13]}  Kh8 {[%clk 0:00:11]} 68. h7 {[%clk 0:00:13]}  Kg7 {[%clk 0:00:11]} 69. Kh5 {[%clk 0:00:13]}  Kh8 {[%clk 0:00:12]} 70. Kh6 {[%clk 0:00:14]} 1/2-1/2


[Site "https://www.chess.com"]

[Event "Titled Tuesday Blitz February 22 Late 2022"]
[White "Dubov, Daniil"]
[Black "Terry, Renato"]
[WhiteFideId "24126055"]
[BlackFideId "3803457"]
[WhiteElo "2791"]
[BlackElo "2577"]
[Result "1/2-1/2"]
[Round "08"]
[TimeControl "180+1"]
[Date "2022.02.22"]
[WhiteClock "0:00:04"]
[BlackClock "0:00:10"]

1. d4 {[%clk 0:03:00]}  e6 {[%clk 0:03:00]} 2. Nf3 {[%clk 0:03:00]}  Nf6 {[%clk 0:03:00]} 3. c4 {[%clk 0:02:59]}  Bb4+ {[%clk 0:02:59]} 4. Nbd2 {[%clk 0:02:59]}  a5 {[%clk 0:02:58]} 5. g3 {[%clk 0:02:58]}  b6 {[%clk 0:02:57]} 6. Bg2 {[%clk 0:02:58]}  Bb7 {[%clk 0:02:57]} 7. O-O {[%clk 0:02:59]}  O-O {[%clk 0:02:57]} 8. Qc2 {[%clk 0:02:58]}  Bxd2 {[%clk 0:02:57]} 9. Bxd2 {[%clk 0:02:55]}  d6 {[%clk 0:02:56]} 10. Rfe1 {[%clk 0:02:48]}  Be4 {[%clk 0:02:56]} 11. Qd1 {[%clk 0:02:48]}  Nbd7 {[%clk 0:02:56]} 12. Bc3 {[%clk 0:02:40]}  Qb8 {[%clk 0:02:54]} 13. Bf1 {[%clk 0:02:28]}  b5 {[%clk 0:02:29]} 14. cxb5 {[%clk 0:02:27]}  Qxb5 {[%clk 0:02:30]} 15. Nd2 {[%clk 0:02:27]}  Qb8 {[%clk 0:02:20]} 16. Rc1 {[%clk 0:02:06]}  Bc6 {[%clk 0:02:02]} 17. e4 {[%clk 0:02:03]}  Bb5 {[%clk 0:02:01]} 18. Bg2 {[%clk 0:02:00]}  a4 {[%clk 0:01:55]} 19. h3 {[%clk 0:01:55]}  Ra6 {[%clk 0:01:51]} 20. Kh2 {[%clk 0:01:53]}  Re8 {[%clk 0:01:43]} 21. Re3 {[%clk 0:01:49]}  e5 {[%clk 0:01:37]} 22. Nf3 {[%clk 0:01:46]}  c5 {[%clk 0:01:28]} 23. dxe5 {[%clk 0:01:21]}  dxe5 {[%clk 0:01:29]} 24. Qc2 {[%clk 0:01:06]}  Rd6 {[%clk 0:01:23]} 25. Rd1 {[%clk 0:01:03]}  g6 {[%clk 0:01:06]} 26. Ree1 {[%clk 0:01:02]}  Ree6 {[%clk 0:00:53]} 27. Rxd6 {[%clk 0:00:56]}  Qxd6 {[%clk 0:00:54]} 28. Rd1 {[%clk 0:00:56]}  Qc7 {[%clk 0:00:51]} 29. Bf1 {[%clk 0:00:43]}  Bxf1 {[%clk 0:00:47]} 30. Rxf1 {[%clk 0:00:44]}  Qc6 {[%clk 0:00:47]} 31. Nd2 {[%clk 0:00:43]}  Rd6 {[%clk 0:00:35]} 32. Nc4 {[%clk 0:00:41]}  Re6 {[%clk 0:00:35]} 33. Rd1 {[%clk 0:00:36]}  h5 {[%clk 0:00:21]} 34. f3 {[%clk 0:00:30]}  Kh7 {[%clk 0:00:10]} 35. h4 {[%clk 0:00:26]}  Qb5 {[%clk 0:00:11]} 36. Qd3 {[%clk 0:00:20]}  Qc6 {[%clk 0:00:11]} 37. Qe2 {[%clk 0:00:18]}  Qc7 {[%clk 0:00:10]} 38. Rd2 {[%clk 0:00:18]}  Nb8 {[%clk 0:00:09]} 39. Ne3 {[%clk 0:00:16]}  Nc6 {[%clk 0:00:08]} 40. Nd5 {[%clk 0:00:16]}  Qb7 {[%clk 0:00:07]} 41. Qc4 {[%clk 0:00:15]}  Nd4 {[%clk 0:00:07]} 42. Rf2 {[%clk 0:00:15]}  Nxd5 {[%clk 0:00:06]} 43. exd5 {[%clk 0:00:14]}  Rd6 {[%clk 0:00:06]} 44. Qxc5 {[%clk 0:00:11]}  Rxd5 {[%clk 0:00:07]} 45. Qc4 {[%clk 0:00:11]}  Rd7 {[%clk 0:00:07]} 46. Kg2 {[%clk 0:00:10]}  f6 {[%clk 0:00:03]} 47. Qxa4 {[%clk 0:00:10]}  Nxf3 {[%clk 0:00:02]} 48. Qb3 {[%clk 0:00:03]}  Nd4+ {[%clk 0:00:01]} 49. Qxb7 {[%clk 0:00:01]}  Rxb7 {[%clk 0:00:02]} 50. Bxd4 {[%clk 0:00:02]}  exd4 {[%clk 0:00:02]} 51. Rd2 {[%clk 0:00:03]}  g5 {[%clk 0:00:02]} 52. Kf3 {[%clk 0:00:03]}  Kg6 {[%clk 0:00:02]} 53. Ke4 {[%clk 0:00:03]}  Re7+ {[%clk 0:00:01]} 54. Kxd4 {[%clk 0:00:02]}  Kf5 {[%clk 0:00:02]} 55. Rf2+ {[%clk 0:00:02]}  Kg4 {[%clk 0:00:02]} 56. Rxf6 {[%clk 0:00:02]}  gxh4 {[%clk 0:00:02]} 57. gxh4 {[%clk 0:00:03]}  Kxh4 {[%clk 0:00:03]} 58. Rg6 {[%clk 0:00:04]}  Re2 {[%clk 0:00:03]} 59. Kc3 {[%clk 0:00:03]}  Re3+ {[%clk 0:00:04]} 60. Kd2 {[%clk 0:00:03]}  Rg3 {[%clk 0:00:04]} 61. Rh6 {[%clk 0:00:02]}  Rg2+ {[%clk 0:00:05]} 62. Kc3 {[%clk 0:00:02]}  Rg3+ {[%clk 0:00:06]} 63. Kc4 {[%clk 0:00:02]}  Rg2 {[%clk 0:00:06]} 64. Kb3 {[%clk 0:00:03]}  Rg3+ {[%clk 0:00:06]} 65. Ka4 {[%clk 0:00:03]}  Rg2 {[%clk 0:00:06]} 66. Ka3 {[%clk 0:00:03]}  Kg5 {[%clk 0:00:06]} 67. Rh8 {[%clk 0:00:03]}  Rg3+ {[%clk 0:00:07]} 68. Ka4 {[%clk 0:00:02]}  h4 {[%clk 0:00:08]} 69. b4 {[%clk 0:00:02]}  h3 {[%clk 0:00:07]} 70. b5 {[%clk 0:00:03]}  Rg4+ {[%clk 0:00:08]} 71. Ka5 {[%clk 0:00:02]}  Rh4 {[%clk 0:00:09]} 72. Rg8+ {[%clk 0:00:02]}  Kf6 {[%clk 0:00:08]} 73. Rg1 {[%clk 0:00:03]}  h2 {[%clk 0:00:08]} 74. Rh1 {[%clk 0:00:03]}  Ke6 {[%clk 0:00:08]} 75. b6 {[%clk 0:00:04]}  Kd6 {[%clk 0:00:08]} 76. Ka6 {[%clk 0:00:04]}  Ra4+ {[%clk 0:00:08]} 77. Kb5 {[%clk 0:00:04]}  Rxa2 {[%clk 0:00:09]} 78. Rd1+ {[%clk 0:00:03]}  Ke5 {[%clk 0:00:08]} 79. b7 {[%clk 0:00:04]}  Rb2+ {[%clk 0:00:08]} 80. Kc6 {[%clk 0:00:04]}  Kf4 {[%clk 0:00:09]} 81. Kc7 {[%clk 0:00:04]}  Rxb7+ {[%clk 0:00:08]} 82. Kxb7 {[%clk 0:00:04]}  Kg3 {[%clk 0:00:08]} 83. Rh1 {[%clk 0:00:03]}  Kg2 {[%clk 0:00:09]} 84. Rxh2+ {[%clk 0:00:04]}  Kxh2 {[%clk 0:00:10]} 1/2-1/2


[Site "https://www.chess.com"]

[Event "Titled Tuesday Blitz February 22 Late 2022"]
[White "Elissalt Cardenas, Hector"]
[Black "Clawitter, Craig"]
[WhiteFideId "3500632"]
[BlackFideId "2023105"]
[WhiteElo "2159"]
[BlackElo "2215"]
[Result "1-0"]
[Round "08"]
[TimeControl "180+1"]
[Date "2022.02.23"]
[WhiteClock "0:00:14"]
[BlackClock "0:00:02"]

1. d4 {[%clk 0:03:00]}  e6 {[%clk 0:02:56]} 2. c4 {[%clk 0:02:58]}  Nf6 {[%clk 0:02:55]} 3. Nc3 {[%clk 0:02:56]}  d5 {[%clk 0:02:56]} 4. Nf3 {[%clk 0:02:47]}  dxc4 {[%clk 0:02:54]} 5. e3 {[%clk 0:02:33]}  a6 {[%clk 0:02:51]} 6. Bxc4 {[%clk 0:02:29]}  b5 {[%clk 0:02:51]} 7. Bd3 {[%clk 0:02:25]}  Bb7 {[%clk 0:02:51]} 8. O-O {[%clk 0:02:17]}  c5 {[%clk 0:02:50]} 9. dxc5 {[%clk 0:02:06]}  Bxc5 {[%clk 0:02:47]} 10. b3 {[%clk 0:02:06]}  Nbd7 {[%clk 0:02:44]} 11. Bb2 {[%clk 0:02:04]}  O-O {[%clk 0:02:44]} 12. Qe2 {[%clk 0:01:47]}  Bxf3 {[%clk 0:02:29]} 13. gxf3 {[%clk 0:01:43]}  Rc8 {[%clk 0:02:25]} 14. Rfd1 {[%clk 0:01:38]}  Qc7 {[%clk 0:02:20]} 15. a4 {[%clk 0:01:29]}  b4 {[%clk 0:02:17]} 16. Ne4 {[%clk 0:01:23]}  Nxe4 {[%clk 0:02:17]} 17. fxe4 {[%clk 0:01:20]}  a5 {[%clk 0:02:02]} 18. Rac1 {[%clk 0:01:20]}  Ne5 {[%clk 0:01:35]} 19. Ba6 {[%clk 0:01:15]}  Ra8 {[%clk 0:01:23]} 20. Bd4 {[%clk 0:01:14]}  Nd7 {[%clk 0:01:06]} 21. Bb5 {[%clk 0:01:13]}  e5 {[%clk 0:00:53]} 22. Bxd7 {[%clk 0:01:12]}  exd4 {[%clk 0:00:53]} 23. exd4 {[%clk 0:01:11]}  Qxd7 {[%clk 0:00:52]} 24. Rxc5 {[%clk 0:01:08]}  Rac8 {[%clk 0:00:51]} 25. Rxa5 {[%clk 0:00:57]}  Rc3 {[%clk 0:00:49]} 26. Rg5 {[%clk 0:00:51]}  Rxb3 {[%clk 0:00:40]} 27. a5 {[%clk 0:00:42]}  Ra3 {[%clk 0:00:34]} 28. a6 {[%clk 0:00:33]}  Ra8 {[%clk 0:00:25]} 29. Rb5 {[%clk 0:00:21]}  b3 {[%clk 0:00:14]} 30. Rb7 {[%clk 0:00:21]}  Qa4 {[%clk 0:00:08]} 31. Qf3 {[%clk 0:00:16]}  Qc4 {[%clk 0:00:03]} 32. d5 {[%clk 0:00:15]}  Rf8 {[%clk 0:00:02]} 33. a7 {[%clk 0:00:14]} 1-0


[Site "https://www.chess.com"]

[Event "Titled Tuesday Blitz February 22 Late 2022"]
[White "Erdogdu, Mert"]
[Black "Debray, Christopher"]
[WhiteFideId "6301495"]
[BlackFideId "630810"]
[WhiteElo "2485"]
[BlackElo "2369"]
[Result "1-0"]
[Round "08"]
[TimeControl "180+1"]
[Date "2022.02.22"]
[WhiteClock "0:00:14"]
[BlackClock "0:00:01"]

1. e4 {[%clk 0:03:00]}  e5 {[%clk 0:02:59]} 2. Nf3 {[%clk 0:03:00]}  Nf6 {[%clk 0:02:59]} 3. Nxe5 {[%clk 0:03:00]}  d6 {[%clk 0:03:00]} 4. Nf3 {[%clk 0:03:00]}  Nxe4 {[%clk 0:02:59]} 5. d4 {[%clk 0:03:00]}  d5 {[%clk 0:02:59]} 6. Bd3 {[%clk 0:03:01]}  Nc6 {[%clk 0:02:58]} 7. O-O {[%clk 0:03:01]}  Be7 {[%clk 0:02:58]} 8. c4 {[%clk 0:03:02]}  Nf6 {[%clk 0:02:57]} 9. h3 {[%clk 0:02:59]}  O-O {[%clk 0:02:55]} 10. Nc3 {[%clk 0:02:59]}  dxc4 {[%clk 0:02:48]} 11. Bxc4 {[%clk 0:02:59]}  Bf5 {[%clk 0:02:45]} 12. Re1 {[%clk 0:02:53]}  Bg6 {[%clk 0:02:19]} 13. a3 {[%clk 0:02:51]}  Re8 {[%clk 0:02:08]} 14. Bf4 {[%clk 0:02:39]}  Bd6 {[%clk 0:02:00]} 15. Ne5 {[%clk 0:02:37]}  Nd7 {[%clk 0:01:00]} 16. Nxg6 {[%clk 0:02:11]}  hxg6 {[%clk 0:01:00]} 17. Be3 {[%clk 0:02:09]}  Nb6 {[%clk 0:00:46]} 18. Ba2 {[%clk 0:02:09]}  Qf6 {[%clk 0:00:42]} 19. Qd3 {[%clk 0:01:56]}  Rad8 {[%clk 0:00:41]} 20. Rad1 {[%clk 0:01:48]}  Bf4 {[%clk 0:00:40]} 21. Bxf4 {[%clk 0:01:00]}  Rxe1+ {[%clk 0:00:41]} 22. Rxe1 {[%clk 0:01:00]}  Qxf4 {[%clk 0:00:41]} 23. Qxg6 {[%clk 0:00:52]}  Nxd4 {[%clk 0:00:08]} 24. Re4 {[%clk 0:00:48]}  Qc1+ {[%clk 0:00:07]} 25. Kh2 {[%clk 0:00:48]}  Rf8 {[%clk 0:00:01]} 26. Rxd4 {[%clk 0:00:38]}  Qxb2 {[%clk 0:00:02]} 27. Bxf7+ {[%clk 0:00:19]}  Rxf7 {[%clk 0:00:01]} 28. Rd8+ {[%clk 0:00:19]}  Rf8 {[%clk 0:00:01]} 29. Qe6+ {[%clk 0:00:20]}  Kh7 {[%clk 0:00:01]} 30. Rxf8 {[%clk 0:00:18]}  Qxc3 {[%clk 0:00:02]} 31. Qf5+ {[%clk 0:00:17]}  g6 {[%clk 0:00:02]} 32. Rf7+ {[%clk 0:00:15]}  Kh6 {[%clk 0:00:02]} 33. Qf4+ {[%clk 0:00:15]}  Kh5 {[%clk 0:00:01]} 34. Rh7# {[%clk 0:00:14]} 1-0


[Site "https://www.chess.com"]

[Event "Titled Tuesday Blitz February 22 Late 2022"]
[White "Guliyev, Namig"]
[Black "Myers, Dominique"]
[WhiteFideId "13400363"]
[BlackFideId "2041715"]
[WhiteElo "2487"]
[BlackElo "1986"]
[Result "1-0"]
[Round "08"]
[TimeControl "180+1"]
[Date "2022.02.23"]
[WhiteClock "0:00:45"]
[BlackClock "0:00:04"]

1. e4 {[%clk 0:02:57]}  e5 {[%clk 0:02:52]} 2. Nc3 {[%clk 0:02:58]}  Nc6 {[%clk 0:02:51]} 3. Bc4 {[%clk 0:02:57]}  Nf6 {[%clk 0:02:51]} 4. d3 {[%clk 0:02:57]}  Bc5 {[%clk 0:02:51]} 5. f4 {[%clk 0:02:58]}  d6 {[%clk 0:02:51]} 6. f5 {[%clk 0:02:56]}  Na5 {[%clk 0:02:48]} 7. Qf3 {[%clk 0:02:53]}  Nxc4 {[%clk 0:02:47]} 8. dxc4 {[%clk 0:02:53]}  c6 {[%clk 0:02:41]} 9. Nge2 {[%clk 0:02:48]}  a6 {[%clk 0:02:39]} 10. g4 {[%clk 0:02:47]}  b5 {[%clk 0:02:39]} 11. g5 {[%clk 0:02:47]}  Nd7 {[%clk 0:02:35]} 12. Be3 {[%clk 0:02:47]}  Qb6 {[%clk 0:02:33]} 13. Bxc5 {[%clk 0:02:46]}  Nxc5 {[%clk 0:02:32]} 14. O-O-O {[%clk 0:02:43]}  b4 {[%clk 0:02:24]} 15. Nb1 {[%clk 0:02:42]}  Qa5 {[%clk 0:02:24]} 16. Rxd6 {[%clk 0:02:38]}  Qxa2 {[%clk 0:02:23]} 17. b3 {[%clk 0:02:34]}  O-O {[%clk 0:02:06]} 18. Rxc6 {[%clk 0:02:32]}  Qa5 {[%clk 0:02:03]} 19. Rd1 {[%clk 0:02:29]}  Bb7 {[%clk 0:02:03]} 20. Rcd6 {[%clk 0:02:27]}  Bxe4 {[%clk 0:01:58]} 21. Qe3 {[%clk 0:02:21]}  Bxf5 {[%clk 0:01:46]} 22. R6d5 {[%clk 0:02:14]}  Rac8 {[%clk 0:01:45]} 23. Rxe5 {[%clk 0:02:11]}  Bxc2 {[%clk 0:01:42]} 24. Rxc5 {[%clk 0:02:07]}  Qa2 {[%clk 0:01:41]} 25. Nd2 {[%clk 0:01:59]}  Bxd1 {[%clk 0:01:27]} 26. Kxd1 {[%clk 0:01:47]}  Rxc5 {[%clk 0:01:14]} 27. Qxc5 {[%clk 0:01:47]}  Rd8 {[%clk 0:01:14]} 28. Qxb4 {[%clk 0:01:46]}  Qb1+ {[%clk 0:01:03]} 29. Nc1 {[%clk 0:01:44]}  Qe4 {[%clk 0:00:57]} 30. Qc3 {[%clk 0:01:31]}  Qh1+ {[%clk 0:00:56]} 31. Kc2 {[%clk 0:01:30]}  Qxh2 {[%clk 0:00:57]} 32. Qe3 {[%clk 0:01:30]}  Qd6 {[%clk 0:00:53]} 33. c5 {[%clk 0:01:26]}  Qg6+ {[%clk 0:00:48]} 34. Nd3 {[%clk 0:01:26]}  h5 {[%clk 0:00:44]} 35. gxh6 {[%clk 0:01:26]}  gxh6 {[%clk 0:00:44]} 36. Nc4 {[%clk 0:01:26]}  h5 {[%clk 0:00:38]} 37. Ne5 {[%clk 0:01:26]}  Qf5 {[%clk 0:00:33]} 38. Qg3+ {[%clk 0:01:16]}  Kf8 {[%clk 0:00:32]} 39. Kc3 {[%clk 0:01:14]}  Rd5 {[%clk 0:00:24]} 40. c6 {[%clk 0:01:09]}  h4 {[%clk 0:00:19]} 41. Qxh4 {[%clk 0:01:04]}  Qe6 {[%clk 0:00:15]} 42. Qc4 {[%clk 0:00:59]}  Rxe5 {[%clk 0:00:11]} 43. Nxe5 {[%clk 0:00:53]}  Qxe5+ {[%clk 0:00:11]} 44. Kb4 {[%clk 0:00:53]}  Qd6+ {[%clk 0:00:10]} 45. Ka5 {[%clk 0:00:53]}  Qc7+ {[%clk 0:00:10]} 46. Kxa6 {[%clk 0:00:53]}  f5 {[%clk 0:00:10]} 47. b4 {[%clk 0:00:45]}  f4 {[%clk 0:00:11]} 48. b5 {[%clk 0:00:45]}  f3 {[%clk 0:00:09]} 49. b6 {[%clk 0:00:45]}  Qe7 {[%clk 0:00:06]} 50. c7 {[%clk 0:00:45]}  Qa3+ {[%clk 0:00:05]} 51. Kb7 {[%clk 0:00:45]}  Ke7 {[%clk 0:00:03]} 52. c8=Q {[%clk 0:00:45]}  f2 {[%clk 0:00:04]} 53. Q8c7+ {[%clk 0:00:45]}  Kf6 {[%clk 0:00:04]} 54. Q7f7+ {[%clk 0:00:45]}  Ke5 {[%clk 0:00:04]} 55. Qfe6# {[%clk 0:00:45]} 1-0


[Site "https://www.chess.com"]

[Event "Titled Tuesday Blitz February 22 Late 2022"]
[White "Hess, Robert"]
[Black "Lewtak, Damian"]
[WhiteFideId "2022036"]
[BlackFideId "1141724"]
[WhiteElo "2557"]
[BlackElo "2361"]
[Result "1-0"]
[Round "08"]
[TimeControl "180+1"]
[Date "2022.02.22"]
[WhiteClock "0:00:06"]
[BlackClock "0:00:04"]

1. b3 {[%clk 0:02:51]}  a5 {[%clk 0:02:57]} 2. Bb2 {[%clk 0:02:52]}  a4 {[%clk 0:02:57]} 3. bxa4 {[%clk 0:02:50]}  d5 {[%clk 0:02:50]} 4. e3 {[%clk 0:02:49]}  c6 {[%clk 0:02:48]} 5. c4 {[%clk 0:02:48]}  e6 {[%clk 0:02:41]} 6. Nf3 {[%clk 0:02:45]}  Nf6 {[%clk 0:02:40]} 7. Nc3 {[%clk 0:02:44]}  Be7 {[%clk 0:02:40]} 8. cxd5 {[%clk 0:02:35]}  exd5 {[%clk 0:02:39]} 9. Bd3 {[%clk 0:02:35]}  O-O {[%clk 0:02:35]} 10. O-O {[%clk 0:02:35]}  Re8 {[%clk 0:02:29]} 11. Nd4 {[%clk 0:02:30]}  Bd6 {[%clk 0:02:21]} 12. f4 {[%clk 0:02:30]}  Ne4 {[%clk 0:02:10]} 13. Nxe4 {[%clk 0:02:29]}  dxe4 {[%clk 0:02:11]} 14. Bc4 {[%clk 0:02:27]}  Qh4 {[%clk 0:02:03]} 15. Bc3 {[%clk 0:02:03]}  Na6 {[%clk 0:02:00]} 16. a5 {[%clk 0:01:52]}  Nc5 {[%clk 0:01:49]} 17. Bb4 {[%clk 0:01:40]}  Bf8 {[%clk 0:01:48]} 18. Qc2 {[%clk 0:01:15]}  Qh5 {[%clk 0:01:16]} 19. a3 {[%clk 0:00:30]}  Na6 {[%clk 0:00:54]} 20. Bc3 {[%clk 0:00:24]}  Nc7 {[%clk 0:00:50]} 21. Ne2 {[%clk 0:00:19]}  Be6 {[%clk 0:00:46]} 22. Ng3 {[%clk 0:00:19]}  Qh4 {[%clk 0:00:34]} 23. Qxe4 {[%clk 0:00:13]}  Bd5 {[%clk 0:00:20]} 24. Qd3 {[%clk 0:00:11]}  Rad8 {[%clk 0:00:20]} 25. Bxd5 {[%clk 0:00:11]}  Nxd5 {[%clk 0:00:21]} 26. Qc2 {[%clk 0:00:07]}  Bc5 {[%clk 0:00:20]} 27. Be5 {[%clk 0:00:04]}  Ba7 {[%clk 0:00:19]} 28. Bxg7 {[%clk 0:00:03]}  Nxe3 {[%clk 0:00:11]} 29. dxe3 {[%clk 0:00:03]}  Bxe3+ {[%clk 0:00:12]} 30. Kh1 {[%clk 0:00:03]}  Rd5 {[%clk 0:00:13]} 31. Be5 {[%clk 0:00:03]}  Re6 {[%clk 0:00:12]} 32. Nf5 {[%clk 0:00:03]}  Qh5 {[%clk 0:00:09]} 33. Nxe3 {[%clk 0:00:02]}  Rh6 {[%clk 0:00:10]} 34. g3 {[%clk 0:00:02]}  f6 {[%clk 0:00:05]} 35. Nxd5 {[%clk 0:00:02]}  cxd5 {[%clk 0:00:04]} 36. Bd4 {[%clk 0:00:02]}  Kf7 {[%clk 0:00:05]} 37. Bg1 {[%clk 0:00:02]}  Qg4 {[%clk 0:00:05]} 38. Qg2 {[%clk 0:00:03]}  d4 {[%clk 0:00:06]} 39. Rf2 {[%clk 0:00:03]}  d3 {[%clk 0:00:06]} 40. Raf1 {[%clk 0:00:04]}  Rh5 {[%clk 0:00:06]} 41. Qf3 {[%clk 0:00:04]}  Qh3 {[%clk 0:00:06]} 42. Qxd3 {[%clk 0:00:04]}  Rf5 {[%clk 0:00:03]} 43. Qc4+ {[%clk 0:00:04]}  Kg6 {[%clk 0:00:04]} 44. Qd3 {[%clk 0:00:05]}  h5 {[%clk 0:00:04]} 45. Rg2 {[%clk 0:00:05]}  Qg4 {[%clk 0:00:04]} 46. Qf3 {[%clk 0:00:05]}  Qh3 {[%clk 0:00:04]} 47. g4 {[%clk 0:00:06]}  Qxf3 {[%clk 0:00:04]} 48. gxf5+ {[%clk 0:00:06]} 1-0


[Site "https://www.chess.com"]